[Event "*** Titled Tuesday Blitz"]
[Site "Chess.com"]
[Date "2020.11.24"]
[Round "4"]
[White "Zhigalko_Sergei"]
[Black "ChronicUnhappiness"]
[Result "1-0"]
[WhiteElo "2886"]
[BlackElo "2365"]
[TimeControl "180+1"]
[EndTime "10:54:05 PST"]
[Termination "Zhigalko_Sergei won on time"]

1. e4 {[%clk 0:03:00.9]} 1... c5 {[%clk 0:02:59.5]} 2. Nf3 {[%clk 0:03:00.8]}
2... Nc6 {[%clk 0:02:59.6]} 3. c3 {[%clk 0:03:01]} 3... d5 {[%clk 0:02:57.9]} 4.
exd5 {[%clk 0:03:00.8]} 4... Qxd5 {[%clk 0:02:57.7]} 5. d4 {[%clk 0:03:00.4]}
5... Nf6 {[%clk 0:02:53.5]} 6. dxc5 {[%clk 0:02:59.6]} 6... Qxd1+ {[%clk
0:02:52.7]} 7. Kxd1 {[%clk 0:02:59.9]} 7... e5 {[%clk 0:02:50.2]} 8. b4 {[%clk
0:02:57.9]} 8... Bg4 {[%clk 0:02:49.4]} 9. Nd2 {[%clk 0:02:56.9]} 9... Nd5
{[%clk 0:02:31.3]} 10. Bb2 {[%clk 0:02:39]} 10... O-O-O {[%clk 0:02:18]} 11. h3
{[%clk 0:02:30.1]} 11... Bxf3+ {[%clk 0:02:02.3]} 12. gxf3 {[%clk 0:02:30.1]}
12... g6 {[%clk 0:01:37.9]} 13. Kc2 {[%clk 0:02:26.5]} 13... f5 {[%clk
0:01:22.7]} 14. Nc4 {[%clk 0:02:24.5]} 14... Be7 {[%clk 0:00:57.6]} 15. Re1
{[%clk 0:02:23.2]} 15... Rhe8 {[%clk 0:00:43.5]} 16. Bc1 {[%clk 0:01:48.8]}
16... b5 {[%clk 0:00:20.4]} 17. cxb6 {[%clk 0:01:37.3]} 17... Nxb6 {[%clk
0:00:19.5]} 18. Nxb6+ {[%clk 0:01:35.3]} 18... axb6 {[%clk 0:00:19.4]} 19. Bb5
{[%clk 0:01:36.2]} 19... Kc7 {[%clk 0:00:17.5]} 20. Bxc6 {[%clk 0:01:34.2]}
20... Kxc6 {[%clk 0:00:17.5]} 21. Rxe5 {[%clk 0:01:34.9]} 21... Bh4 {[%clk
0:00:16.1]} 22. b5+ {[%clk 0:01:30.2]} 22... Kb7 {[%clk 0:00:14.1]} 23. Rxe8
{[%clk 0:01:29.7]} 23... Rxe8 {[%clk 0:00:13.9]} 24. Be3 {[%clk 0:01:27.1]}
24... Ra8 {[%clk 0:00:06.5]} 25. Kb3 {[%clk 0:01:21.7]} 25... Rd8 {[%clk
0:00:06.5]} 26. a4 {[%clk 0:01:17.9]} 26... Rd3 {[%clk 0:00:02]} 27. Kc2 {[%clk
0:01:14.7]} 27... Rd5 {[%clk 0:00:01.5]} 28. Rd1 {[%clk 0:01:13.5]} 28... Rxd1
{[%clk 0:00:01.2]} 29. Kxd1 {[%clk 0:01:13.8]} 29... Bf6 {[%clk 0:00:01]} 30.
Kc2 {[%clk 0:01:14]} 1-0

[Event "*** Titled Tuesday Blitz"]
[Site "Chess.com"]
[Date "2020.11.24"]
[Round "4"]
[White "AlexSuv"]
[Black "VinzentSpitzl"]
[Result "1/2-1/2"]
[WhiteElo "2519"]
[BlackElo "2369"]
[TimeControl "180+1"]
[EndTime "10:54:07 PST"]
[Termination "Game drawn by agreement"]

1. d4 {[%clk 0:03:00.9]} 1... d5 {[%clk 0:02:59.7]} 2. c4 {[%clk 0:02:57.6]}
2... e6 {[%clk 0:03:00]} 3. Nc3 {[%clk 0:02:47.3]} 3... Bb4 {[%clk 0:02:59.9]}
4. cxd5 {[%clk 0:02:45.3]} 4... exd5 {[%clk 0:02:59.4]} 5. Nf3 {[%clk
0:02:45.6]} 5... Nf6 {[%clk 0:02:59.1]} 6. Bg5 {[%clk 0:02:45.8]} 6... h6 {[%clk
0:02:58.9]} 7. Bxf6 {[%clk 0:02:41.7]} 7... Qxf6 {[%clk 0:02:59.8]} 8. e3 {[%clk
0:02:41.1]} 8... O-O {[%clk 0:02:52.7]} 9. Be2 {[%clk 0:02:40.7]} 9... Bf5
{[%clk 0:02:49.2]} 10. O-O {[%clk 0:02:38.9]} 10... c6 {[%clk 0:02:45.8]} 11.
Ne5 {[%clk 0:02:34.1]} 11... Nd7 {[%clk 0:02:33.5]} 12. f4 {[%clk 0:02:14]}
12... Nxe5 {[%clk 0:02:16.3]} 13. fxe5 {[%clk 0:02:10.9]} 13... Qg6 {[%clk
0:02:09]} 14. Rf3 {[%clk 0:01:57.9]} 14... Be4 {[%clk 0:01:42.4]} 15. Rg3 {[%clk
0:01:46.6]} 15... Qf5 {[%clk 0:01:22.8]} 16. Nxe4 {[%clk 0:01:41.6]} 16... dxe4
{[%clk 0:01:18.6]} 17. Qb3 {[%clk 0:01:35.2]} 17... c5 {[%clk 0:01:10.3]} 18.
Rf1 {[%clk 0:01:31.4]} 18... Qe6 {[%clk 0:01:05.2]} 19. Bc4 {[%clk 0:01:28]}
19... Qe7 {[%clk 0:01:00.3]} 20. Bd5 {[%clk 0:01:08.6]} 20... cxd4 {[%clk
0:00:39.3]} 21. exd4 {[%clk 0:01:08.4]} 21... Rad8 {[%clk 0:00:38.1]} 22. a3
{[%clk 0:01:03.1]} 22... Ba5 {[%clk 0:00:34.8]} 23. Kh1 {[%clk 0:00:47.3]} 23...
Bb6 {[%clk 0:00:33.8]} 24. Bxe4 {[%clk 0:00:36.4]} 24... Rxd4 {[%clk 0:00:29.2]}
1/2-1/2

[Event "*** Titled Tuesday Blitz"]
[Site "Chess.com"]
[Date "2020.11.24"]
[Round "4"]
[White "Khnykin_Nikolay"]
[Black "anon569"]
[Result "1-0"]
[WhiteElo "2081"]
[BlackElo "2278"]
[TimeControl "180+1"]
[EndTime "10:54:08 PST"]
[Termination "Khnykin_Nikolay won by checkmate"]

1. e4 {[%clk 0:02:56.4]} 1... c5 {[%clk 0:02:59]} 2. d4 {[%clk 0:02:54.7]} 2...
cxd4 {[%clk 0:02:57]} 3. c3 {[%clk 0:02:54.1]} 3... g6 {[%clk 0:02:55.5]} 4.
cxd4 {[%clk 0:02:51.8]} 4... d5 {[%clk 0:02:55.3]} 5. exd5 {[%clk 0:02:50.3]}
5... Nf6 {[%clk 0:02:54.7]} 6. Nc3 {[%clk 0:02:51.2]} 6... Bg7 {[%clk
0:02:53.6]} 7. Nf3 {[%clk 0:02:50.2]} 7... Nbd7 {[%clk 0:02:44.7]} 8. Bc4 {[%clk
0:02:44.7]} 8... O-O {[%clk 0:02:41.2]} 9. O-O {[%clk 0:02:42.9]} 9... Nb6
{[%clk 0:02:40.3]} 10. Bb3 {[%clk 0:02:41.6]} 10... Nfxd5 {[%clk 0:02:38.7]} 11.
Re1 {[%clk 0:02:37.5]} 11... Bf5 {[%clk 0:02:20.2]} 12. Nxd5 {[%clk 0:02:29.6]}
12... Nxd5 {[%clk 0:02:11.2]} 13. Bxd5 {[%clk 0:02:29.5]} 13... Qxd5 {[%clk
0:02:11.6]} 14. Rxe7 {[%clk 0:02:29.3]} 14... Be6 {[%clk 0:02:04.2]} 15. Be3
{[%clk 0:02:24.7]} 15... Rac8 {[%clk 0:01:59.4]} 16. Rc1 {[%clk 0:02:21.4]}
16... Rxc1 {[%clk 0:00:55.1]} 17. Qxc1 {[%clk 0:02:19.7]} 17... Rd8 {[%clk
0:00:55.3]} 18. a3 {[%clk 0:02:16]} 18... Bf8 {[%clk 0:00:44]} 19. Rc7 {[%clk
0:02:13.5]} 19... Bd6 {[%clk 0:00:42.3]} 20. Rc3 {[%clk 0:02:11.4]} 20... Qh5
{[%clk 0:00:39.2]} 21. Bf4 {[%clk 0:01:48.9]} 21... Be7 {[%clk 0:00:26.6]} 22.
Rc7 {[%clk 0:01:40.6]} 22... Bf6 {[%clk 0:00:20.4]} 23. Rxb7 {[%clk 0:01:35.1]}
23... Bg4 {[%clk 0:00:12.3]} 24. Ne5 {[%clk 0:01:20]} 24... Rxd4 {[%clk
0:00:11.6]} 25. Rb8+ {[%clk 0:01:09]} 25... Kg7 {[%clk 0:00:10.9]} 26. Nxg4
{[%clk 0:00:59.5]} 26... Qxg4 {[%clk 0:00:10.6]} 27. Bh6# {[%clk 0:00:58.5]} 1-0

[Event "*** Titled Tuesday Blitz"]
[Site "Chess.com"]
[Date "2020.11.24"]
[Round "4"]
[White "Das_Virus_2020"]
[Black "SpasKozhuharov"]
[Result "1/2-1/2"]
[WhiteElo "2504"]
[BlackElo "2675"]
[TimeControl "180+1"]
[EndTime "10:54:11 PST"]
[Termination "Game drawn by repetition"]

1. e4 {[%clk 0:03:00.9]} 1... c6 {[%clk 0:02:55]} 2. d4 {[%clk 0:03:00.1]} 2...
d5 {[%clk 0:02:55.8]} 3. Nc3 {[%clk 0:03:00.4]} 3... dxe4 {[%clk 0:02:55.3]} 4.
Nxe4 {[%clk 0:03:01.3]} 4... Nd7 {[%clk 0:02:56.2]} 5. Nf3 {[%clk 0:03:00.2]}
5... Ngf6 {[%clk 0:02:56.7]} 6. Nxf6+ {[%clk 0:03:00.4]} 6... Nxf6 {[%clk
0:02:57.6]} 7. Bd3 {[%clk 0:03:00.1]} 7... Bg4 {[%clk 0:02:57]} 8. c3 {[%clk
0:03:00.2]} 8... Qd5 {[%clk 0:02:55.7]} 9. Be2 {[%clk 0:02:57.5]} 9... e6 {[%clk
0:02:55]} 10. Qb3 {[%clk 0:02:54.1]} 10... O-O-O {[%clk 0:02:52.2]} 11. Qxd5
{[%clk 0:02:47.6]} 11... exd5 {[%clk 0:02:50.3]} 12. O-O {[%clk 0:02:43.8]}
12... Bd6 {[%clk 0:02:48.7]} 13. Bg5 {[%clk 0:02:38.9]} 13... Rde8 {[%clk
0:02:47.2]} 14. Rfe1 {[%clk 0:02:27]} 14... Ne4 {[%clk 0:02:45.5]} 15. Bh4
{[%clk 0:02:27]} 15... f6 {[%clk 0:02:43.9]} 16. Bg3 {[%clk 0:02:26.4]} 16...
Nxg3 {[%clk 0:02:42]} 17. hxg3 {[%clk 0:02:26]} 17... Kc7 {[%clk 0:02:35.6]} 18.
Kf1 {[%clk 0:02:17.5]} 18... a5 {[%clk 0:02:30]} 19. Bd3 {[%clk 0:02:02.3]}
19... g6 {[%clk 0:02:23.5]} 20. a4 {[%clk 0:01:52.2]} 20... Kd7 {[%clk
0:02:12.1]} 21. Rxe8 {[%clk 0:01:50.8]} 21... Rxe8 {[%clk 0:02:11.6]} 22. Re1
{[%clk 0:01:50.5]} 22... Rxe1+ {[%clk 0:02:10.6]} 23. Kxe1 {[%clk 0:01:51.4]}
23... b6 {[%clk 0:02:07.8]} 24. Kd2 {[%clk 0:01:49.9]} 24... c5 {[%clk 0:02:07]}
25. dxc5 {[%clk 0:01:43.4]} 25... bxc5 {[%clk 0:02:07.9]} 26. b3 {[%clk
0:01:20.6]} 26... Ke7 {[%clk 0:02:03.5]} 27. Bb5 {[%clk 0:01:14]} 27... g5
{[%clk 0:01:57.9]} 28. Bc6 {[%clk 0:01:09.3]} 28... Be6 {[%clk 0:01:56.8]} 29.
Ne1 {[%clk 0:01:03.1]} 29... h5 {[%clk 0:01:55.6]} 30. Nc2 {[%clk 0:01:00.7]}
30... f5 {[%clk 0:01:51.4]} 31. Ne3 {[%clk 0:00:58.5]} 31... d4 {[%clk 0:01:48]}
32. cxd4 {[%clk 0:00:58]} 32... cxd4 {[%clk 0:01:48.9]} 33. Nc4 {[%clk
0:00:57.4]} 33... Bxc4 {[%clk 0:01:35.6]} 34. bxc4 {[%clk 0:00:56.3]} 34... Kf6
{[%clk 0:01:28.1]} 35. Kd3 {[%clk 0:00:54.9]} 35... Ke5 {[%clk 0:01:24.7]} 36.
Be8 {[%clk 0:00:49.1]} 36... h4 {[%clk 0:01:24.6]} 37. gxh4 {[%clk 0:00:49.1]}
37... gxh4 {[%clk 0:01:25.5]} 38. Bh5 {[%clk 0:00:47.6]} 38... Bb4 {[%clk
0:01:22.5]} 39. Bd1 {[%clk 0:00:44.3]} 39... Be1 {[%clk 0:01:18.9]} 40. Ke2
{[%clk 0:00:44]} 40... Bb4 {[%clk 0:01:17.1]} 41. Kd3 {[%clk 0:00:44.1]} 41...
Bc5 {[%clk 0:01:16.8]} 42. Bh5 {[%clk 0:00:42.7]} 42... Kf4 {[%clk 0:01:17.7]}
43. Bd1 {[%clk 0:00:41.5]} 43... Bb6 {[%clk 0:01:17.5]} 44. Bh5 {[%clk 0:00:41]}
44... Kg5 {[%clk 0:01:13.3]} 45. Bd1 {[%clk 0:00:40.6]} 45... Kf6 {[%clk
0:01:14.2]} 46. Bh5 {[%clk 0:00:40.1]} 46... Ke5 {[%clk 0:01:14.3]} 47. Bd1
{[%clk 0:00:39.9]} 47... Bc5 {[%clk 0:01:15.2]} 48. Bh5 {[%clk 0:00:39.7]} 48...
Bb4 {[%clk 0:01:14.4]} 49. Bd1 {[%clk 0:00:39.2]} 1/2-1/2

[Event "*** Titled Tuesday Blitz"]
[Site "Chess.com"]
[Date "2020.11.24"]
[Round "4"]
[White "tlomigtlis"]
[Black "Kaua18"]
[Result "1-0"]
[WhiteElo "2580"]
[BlackElo "2352"]
[TimeControl "180+1"]
[EndTime "10:54:12 PST"]
[Termination "tlomigtlis won on time"]

1. d4 {[%clk 0:03:00.9]} 1... Nf6 {[%clk 0:02:58.2]} 2. c4 {[%clk 0:03:01.4]}
2... e6 {[%clk 0:02:58.6]} 3. Nc3 {[%clk 0:03:01.3]} 3... Bb4 {[%clk 0:02:58.3]}
4. Qc2 {[%clk 0:03:00.4]} 4... c5 {[%clk 0:02:57.1]} 5. dxc5 {[%clk 0:03:00]}
5... O-O {[%clk 0:02:57.2]} 6. Nf3 {[%clk 0:02:59.5]} 6... Na6 {[%clk
0:02:57.4]} 7. a3 {[%clk 0:02:58.5]} 7... Bxc3+ {[%clk 0:02:57.2]} 8. Qxc3
{[%clk 0:02:58.5]} 8... Nxc5 {[%clk 0:02:58.1]} 9. b4 {[%clk 0:02:59]} 9... Nce4
{[%clk 0:02:57.4]} 10. Qd4 {[%clk 0:02:59.1]} 10... d5 {[%clk 0:02:57.6]} 11. c5
{[%clk 0:02:59.2]} 11... Ng4 {[%clk 0:02:56.6]} 12. Be3 {[%clk 0:02:52.4]} 12...
Re8 {[%clk 0:01:43.5]} 13. Rd1 {[%clk 0:02:39.1]} 13... e5 {[%clk 0:01:24.7]}
14. Qxd5 {[%clk 0:02:24.3]} 14... Nxe3 {[%clk 0:01:18.3]} 15. fxe3 {[%clk
0:02:19.2]} 15... Qxd5 {[%clk 0:00:52.1]} 16. Rxd5 {[%clk 0:02:20.1]} 16... f6
{[%clk 0:00:37.3]} 17. g3 {[%clk 0:02:18.9]} 17... Be6 {[%clk 0:00:37.6]} 18.
Rd1 {[%clk 0:02:18.2]} 18... Rad8 {[%clk 0:00:36.6]} 19. Rxd8 {[%clk 0:02:11.2]}
19... Rxd8 {[%clk 0:00:37.1]} 20. Bg2 {[%clk 0:02:12.1]} 20... Nc3 {[%clk
0:00:23.4]} 21. Nd2 {[%clk 0:02:03.3]} 21... b6 {[%clk 0:00:17.4]} 22. c6 {[%clk
0:02:02.1]} 22... f5 {[%clk 0:00:17.1]} 23. e4 {[%clk 0:01:51.9]} 23... g6
{[%clk 0:00:10.1]} 24. exf5 {[%clk 0:01:46.4]} 24... gxf5 {[%clk 0:00:10.2]} 25.
e4 {[%clk 0:01:46.1]} 25... f4 {[%clk 0:00:04.5]} 26. gxf4 {[%clk 0:01:37.3]}
26... exf4 {[%clk 0:00:05.4]} 27. e5 {[%clk 0:01:38]} 27... Rd3 {[%clk
0:00:02.7]} 28. Nf1 {[%clk 0:01:19.2]} 28... Bg4 {[%clk 0:00:02.4]} 29. h3
{[%clk 0:01:13.4]} 29... Bh5 {[%clk 0:00:02.1]} 30. Rg1 {[%clk 0:01:09.6]} 1-0

[Event "*** Titled Tuesday Blitz"]
[Site "Chess.com"]
[Date "2020.11.24"]
[Round "4"]
[White "eightbyeightchess"]
[Black "TheCairnTerrier"]
[Result "1-0"]
[WhiteElo "2421"]
[BlackElo "2166"]
[TimeControl "180+1"]
[EndTime "10:54:18 PST"]
[Termination "eightbyeightchess won on time"]

1. e4 {[%clk 0:03:00.9]} 1... c5 {[%clk 0:02:59.7]} 2. Nf3 {[%clk 0:03:00.4]}
2... e6 {[%clk 0:03:00.1]} 3. d4 {[%clk 0:03:01]} 3... cxd4 {[%clk 0:03:00.5]}
4. Nxd4 {[%clk 0:03:01.9]} 4... Nf6 {[%clk 0:03:00.3]} 5. Nc3 {[%clk 0:03:01.1]}
5... d6 {[%clk 0:02:59.5]} 6. Bd3 {[%clk 0:03:00.9]} 6... Nc6 {[%clk 0:02:58.2]}
7. Nxc6 {[%clk 0:02:55.8]} 7... bxc6 {[%clk 0:02:59.1]} 8. O-O {[%clk
0:02:56.1]} 8... Be7 {[%clk 0:02:58.5]} 9. f4 {[%clk 0:02:56.1]} 9... e5 {[%clk
0:02:56.7]} 10. fxe5 {[%clk 0:02:55.8]} 10... dxe5 {[%clk 0:02:55.8]} 11. h3
{[%clk 0:02:55.1]} 11... O-O {[%clk 0:02:46.8]} 12. Be3 {[%clk 0:02:54.9]} 12...
Qa5 {[%clk 0:02:22.9]} 13. Qf3 {[%clk 0:02:50.7]} 13... Rb8 {[%clk 0:02:20.5]}
14. Rab1 {[%clk 0:02:48.7]} 14... Be6 {[%clk 0:01:49.5]} 15. a3 {[%clk 0:02:45]}
15... Rb7 {[%clk 0:01:48.6]} 16. Ne2 {[%clk 0:02:43.6]} 16... Rfb8 {[%clk
0:01:47.7]} 17. Ng3 {[%clk 0:02:36.9]} 17... Rxb2 {[%clk 0:01:44.8]} 18. Rxb2
{[%clk 0:02:37.8]} 18... Rxb2 {[%clk 0:01:44.2]} 19. Nf5 {[%clk 0:02:34.3]}
19... Bf8 {[%clk 0:01:42.8]} 20. Bg5 {[%clk 0:02:32.5]} 20... Nd7 {[%clk
0:01:19]} 21. Be7 {[%clk 0:02:18.1]} 21... f6 {[%clk 0:00:39]} 22. Bxf8 {[%clk
0:02:11.2]} 22... Kxf8 {[%clk 0:00:38.7]} 23. Qh5 {[%clk 0:01:48.9]} 23... Qb6+
{[%clk 0:00:25.9]} 24. Kh1 {[%clk 0:01:47.8]} 24... Bxf5 {[%clk 0:00:16.3]} 25.
Qxf5 {[%clk 0:01:44.9]} 25... Qb7 {[%clk 0:00:15.8]} 26. Qxh7 {[%clk 0:01:43.9]}
26... Rb1 {[%clk 0:00:12.9]} 27. Qh8+ {[%clk 0:01:43.4]} 27... Ke7 {[%clk
0:00:09.1]} 28. Qxg7+ {[%clk 0:01:43.1]} 28... Kd6 {[%clk 0:00:09.5]} 29. Rxb1
{[%clk 0:01:35.8]} 29... Qxb1+ {[%clk 0:00:10.4]} 30. Kh2 {[%clk 0:01:36.7]}
30... Qc1 {[%clk 0:00:06.8]} 31. h4 {[%clk 0:01:35.2]} 31... Qf4+ {[%clk
0:00:06.4]} 32. Qg3 {[%clk 0:01:35.9]} 32... Qc1 {[%clk 0:00:03.9]} 33. h5
{[%clk 0:01:35.3]} 33... Qxa3 {[%clk 0:00:02.4]} 34. h6 {[%clk 0:01:34.7]} 34...
Qc1 {[%clk 0:00:02.4]} 35. h7 {[%clk 0:01:22.2]} 35... Qh6+ {[%clk 0:00:02.9]}
36. Qh3 {[%clk 0:01:22.7]} 36... Qf4+ {[%clk 0:00:03.5]} 37. Kg1 {[%clk
0:01:22.6]} 37... Qc1+ {[%clk 0:00:03.6]} 38. Bf1 {[%clk 0:01:22.9]} 1-0

[Event "*** Titled Tuesday Blitz"]
[Site "Chess.com"]
[Date "2020.11.24"]
[Round "4"]
[White "JustKid"]
[Black "Zajdanek"]
[Result "1-0"]
[WhiteElo "2499"]
[BlackElo "2320"]
[TimeControl "180+1"]
[EndTime "10:54:20 PST"]
[Termination "JustKid won by checkmate"]

1. d4 {[%clk 0:03:00.9]} 1... Nf6 {[%clk 0:02:59.4]} 2. Bf4 {[%clk 0:03:01.5]}
2... d5 {[%clk 0:02:59.4]} 3. e3 {[%clk 0:03:02]} 3... b6 {[%clk 0:02:59.7]} 4.
Nf3 {[%clk 0:03:00.3]} 4... Bb7 {[%clk 0:03:00.1]} 5. Nbd2 {[%clk 0:02:57.1]}
5... e6 {[%clk 0:03:00.3]} 6. Bd3 {[%clk 0:02:57.2]} 6... Ne4 {[%clk 0:03:00.8]}
7. O-O {[%clk 0:02:57]} 7... Nd7 {[%clk 0:03:00.3]} 8. c4 {[%clk 0:02:51.6]}
8... f5 {[%clk 0:02:59.8]} 9. h3 {[%clk 0:02:49.7]} 9... Bd6 {[%clk 0:02:58.5]}
10. Bxd6 {[%clk 0:02:16.3]} 10... cxd6 {[%clk 0:02:58.1]} 11. cxd5 {[%clk
0:02:09.8]} 11... exd5 {[%clk 0:02:55.9]} 12. Qb3 {[%clk 0:02:00.7]} 12... Ndf6
{[%clk 0:02:50.3]} 13. a4 {[%clk 0:01:54.9]} 13... a5 {[%clk 0:02:48.4]} 14.
Bb5+ {[%clk 0:01:49]} 14... Kf7 {[%clk 0:02:47.1]} 15. Rac1 {[%clk 0:01:45.3]}
15... Rc8 {[%clk 0:02:38.7]} 16. Bd3 {[%clk 0:01:32.7]} 16... Qe7 {[%clk
0:02:27.5]} 17. Qxb6 {[%clk 0:01:26.9]} 17... Kg6 {[%clk 0:02:13.4]} 18. Nh4+
{[%clk 0:01:16.6]} 18... Kg5 {[%clk 0:02:10.7]} 19. Ndf3+ {[%clk 0:01:16.4]}
19... Kh5 {[%clk 0:02:09]} 20. Nxf5 {[%clk 0:01:16]} 20... Qd7 {[%clk
0:02:08.9]} 21. g4+ {[%clk 0:01:02.8]} 21... Nxg4 {[%clk 0:02:04.7]} 22. hxg4+
{[%clk 0:01:03.7]} 22... Kxg4 {[%clk 0:02:05.1]} 23. N3h4 {[%clk 0:01:04.3]}
23... Ng5 {[%clk 0:01:51.7]} 24. Be2+ {[%clk 0:01:00.5]} 24... Kh3 {[%clk
0:01:50.3]} 25. f4 {[%clk 0:00:44.4]} 25... g6 {[%clk 0:01:43.3]} 26. Rxc8
{[%clk 0:00:38.1]} 26... Bxc8 {[%clk 0:01:38.9]} 27. fxg5 {[%clk 0:00:37.7]}
27... gxf5 {[%clk 0:01:38.8]} 28. Nxf5 {[%clk 0:00:32.4]} 28... Rg8 {[%clk
0:01:36.9]} 29. Rf3+ {[%clk 0:00:31.2]} 29... Kg4 {[%clk 0:01:35.8]} 30. Nh6+
{[%clk 0:00:30.9]} 30... Kxg5 {[%clk 0:01:33.9]} 31. Nxg8 {[%clk 0:00:28.9]}
31... Qg4+ {[%clk 0:01:33.8]} 32. Kf2 {[%clk 0:00:29.5]} 32... Qh4+ {[%clk
0:01:33]} 33. Rg3+ {[%clk 0:00:29.5]} 33... Kf5 {[%clk 0:01:33.5]} 34. Bd3+
{[%clk 0:00:25]} 34... Ke6 {[%clk 0:01:33.3]} 35. Bf1 {[%clk 0:00:14.4]} 35...
Qh2+ {[%clk 0:01:32.2]} 36. Bg2 {[%clk 0:00:14.5]} 36... Qh4 {[%clk 0:01:32.4]}
37. Qc7 {[%clk 0:00:12.6]} 37... Bd7 {[%clk 0:01:32.7]} 38. Qb8 {[%clk
0:00:09.9]} 38... h5 {[%clk 0:01:25.8]} 39. Qf8 {[%clk 0:00:08.9]} 39... Bxa4
{[%clk 0:01:21.5]} 40. Bh3+ {[%clk 0:00:09]} 40... Qg4 {[%clk 0:01:20.1]} 41.
Rxg4 {[%clk 0:00:08.9]} 41... hxg4 {[%clk 0:01:21]} 42. Bxg4# {[%clk 0:00:09.8]}
1-0

[Event "*** Titled Tuesday Blitz"]
[Site "Chess.com"]
[Date "2020.11.24"]
[Round "4"]
[White "Salem-AR"]
[Black "KaterinaMiroshnik"]
[Result "1-0"]
[WhiteElo "2901"]
[BlackElo "2525"]
[TimeControl "180+1"]
[EndTime "10:54:21 PST"]
[Termination "Salem-AR won by resignation"]

1. e4 {[%clk 0:03:00.4]} 1... d6 {[%clk 0:02:21.5]} 2. d4 {[%clk 0:02:56.5]}
2... Nf6 {[%clk 0:02:21.5]} 3. Bd3 {[%clk 0:02:55.8]} 3... e5 {[%clk 0:02:21]}
4. Nf3 {[%clk 0:02:54.4]} 4... Nbd7 {[%clk 0:02:20.1]} 5. O-O {[%clk 0:02:51.3]}
5... Be7 {[%clk 0:02:20.3]} 6. c4 {[%clk 0:02:48.2]} 6... O-O {[%clk 0:02:20]}
7. Nc3 {[%clk 0:02:48]} 7... c6 {[%clk 0:02:20.3]} 8. Re1 {[%clk 0:02:42.6]}
8... b6 {[%clk 0:02:19.8]} 9. d5 {[%clk 0:02:41.5]} 9... c5 {[%clk 0:02:09.7]}
10. Nd2 {[%clk 0:02:24.5]} 10... Re8 {[%clk 0:02:04.2]} 11. a3 {[%clk
0:02:22.4]} 11... Nf8 {[%clk 0:02:04.1]} 12. b4 {[%clk 0:02:21.9]} 12... Ng6
{[%clk 0:02:01.8]} 13. Nb3 {[%clk 0:02:20.4]} 13... Kh8 {[%clk 0:01:58.1]} 14.
bxc5 {[%clk 0:02:13.6]} 14... dxc5 {[%clk 0:01:55.5]} 15. a4 {[%clk 0:02:12.1]}
15... a5 {[%clk 0:01:50.4]} 16. Bf1 {[%clk 0:02:03.5]} 16... Ba6 {[%clk
0:01:47.7]} 17. Nd2 {[%clk 0:02:01.4]} 17... Bd6 {[%clk 0:01:45.6]} 18. Ndb1
{[%clk 0:01:59.9]} 18... Rf8 {[%clk 0:01:39.8]} 19. Na3 {[%clk 0:01:58.4]} 19...
Qe7 {[%clk 0:01:31.8]} 20. Nab5 {[%clk 0:01:58.1]} 20... Rad8 {[%clk 0:01:27.7]}
21. Rb1 {[%clk 0:01:52.6]} 21... Ne8 {[%clk 0:01:20.7]} 22. Bd3 {[%clk
0:01:48.9]} 22... Bxb5 {[%clk 0:01:13.2]} 23. Nxb5 {[%clk 0:01:46.8]} 23... Bb8
{[%clk 0:01:12.7]} 24. g3 {[%clk 0:01:35.7]} 24... Nd6 {[%clk 0:01:11.6]} 25.
Nxd6 {[%clk 0:01:27.2]} 25... Rxd6 {[%clk 0:01:10.8]} 26. Re2 {[%clk 0:01:25.3]}
26... Rf6 {[%clk 0:01:02.8]} 27. Bg5 {[%clk 0:01:24.2]} 27... Qd6 {[%clk
0:01:02.6]} 28. Bxf6 {[%clk 0:01:23.7]} 28... Qxf6 {[%clk 0:01:03.5]} 29. Reb2
{[%clk 0:01:24.1]} 29... Bc7 {[%clk 0:01:03.3]} 30. Bf1 {[%clk 0:01:21.5]} 30...
Qg5 {[%clk 0:00:57.4]} 31. Bh3 {[%clk 0:01:18]} 31... h5 {[%clk 0:00:52.7]} 32.
d6 {[%clk 0:01:12.6]} 32... Bd8 {[%clk 0:00:46.6]} 33. Bf5 {[%clk 0:01:12.5]}
33... h4 {[%clk 0:00:36.6]} 34. Qg4 {[%clk 0:01:10.6]} 34... Qxg4 {[%clk
0:00:26.2]} 35. Bxg4 {[%clk 0:01:11.5]} 35... hxg3 {[%clk 0:00:26.3]} 36. hxg3
{[%clk 0:01:11.5]} 36... f6 {[%clk 0:00:26]} 37. Be6 {[%clk 0:01:10]} 37... Kh7
{[%clk 0:00:22.9]} 38. Kg2 {[%clk 0:01:08.8]} 38... Kh6 {[%clk 0:00:22.8]} 39.
Rh1+ {[%clk 0:01:04.7]} 39... Kg5 {[%clk 0:00:22.4]} 40. Rh7 {[%clk 0:01:05.3]}
1-0